bitfinex/quotes_SOLUSD_20250101
["timestamp","ask_amount","ask_price","bid_price","bid_amount"]
[1735729419686,5.98432513,190.52,190.5,20.0]
[1735729419891,5.0,190.51,190.47,10.27378363]
[1735729420084,5.9843475,190.5,190.47,10.27378363]
[1735729420283,10.0,190.48,190.41,13.1294]
[1735729420479,10.98452146,190.47,190.42,10.27378363]
[1735729421781,10.98452146,190.47,190.39,6.0835]
[1735729421782,0.98455614,190.51,190.46,30.27378363]
[1735729421971,0.98455614,190.51,190.48,10.27378363]
[1735729422765,0.98431229,190.52,190.48,10.27378363]
[1735729423375,5.98431229,190.52,190.48,10.27378363]
[1735729424295,5.98431229,190.52,190.48,10.27586821]
[1735729424597,0.98431229,190.52,190.48,10.27586821]
[1735729424766,5.0,190.54,190.49,16.0551293]
[1735729424970,5.98422001,190.54,190.5,16.0551293]
[1735729425172,5.98422001,190.54,190.51,16.0551293]
[1735729425598,5.98414656,190.54,190.51,16.0551293]
[1735729425779,5.0,190.54,190.51,16.0551293]
[1735729426602,5.98414363,190.53,190.5,16.0551293]
[1735729428188,5.0,190.52,190.5,16.0551293]
[1735729428393,0.98421956,190.51,190.5,20.0]
[1735729428590,5.98430031,190.52,190.5,20.0]
[1735729428980,5.0,190.53,190.5,20.0]
[1735729429281,0.98422121,190.53,190.5,20.0]
[1735729430190,10.0,190.54,190.5,16.0551293]
[1735729430401,10.0,190.54,190.5,36.0551293]
[1735729431305,10.0,190.54,190.5,20.0]
[1735729431891,10.0,190.54,190.5,36.0551293]
[1735729432803,0.98419043,190.53,190.5,36.0551293]
[1735729433105,0.98419043,190.53,190.5,20.0]
[1735729433404,10.0,190.54,190.5,20.0]
[1735729433899,0.9841867,190.53,190.5,20.0]
[1735729434102,5.0,190.52,190.5,20.0]
[1735729435100,5.9841867,190.53,190.5,20.0]
[1735729435706,5.9841867,190.53,190.51,1.80165488]
[1735729436007,10.9841867,190.53,190.51,1.80165488]
[1735729436192,5.9841867,190.53,190.51,1.80165488]
[1735729436393,5.9841867,190.53,190.5,20.0]
[1735729437606,5.0,190.52,190.5,20.0]
[1735729437908,5.9841867,190.53,190.5,20.0]
[1735729438407,10.9841867,190.53,190.5,20.0]
[1735729439406,10.9841867,190.53,190.51,1.80517062]
[1735729440006,10.9841867,190.53,190.5,20.0]
[1735729440187,5.0,190.52,190.5,20.0]
[1735729440705,10.0,190.5,190.46,16.0551293]
[1735729440907,10.0,190.5,190.46,20.0]
[1735729440908,0.98442503,190.49,190.46,20.0]
[1735729441104,5.98442503,190.49,190.45,16.0551293]
[1735729441282,10.0,190.48,190.42,16.0551293]
[1735729441478,10.98452983,190.47,190.42,16.0551293]
[1735729442089,10.98452983,190.47,190.43,1.80840979]
[1735729442292,5.0,190.46,190.43,1.80840979]
[1735729442505,0.98464899,190.45,190.44,20.0]
[1735729442707,10.0,190.44,190.41,16.0551293]
[1735729442909,5.0,190.43,190.41,16.0551293]
[1735729443785,5.0,190.43,190.42,1.80888839]
[1735729443987,5.0,190.43,190.42,17.86401769]
[1735729444187,5.0,190.43,190.42,17.87490673]
[1735729444930,5.0,190.43,190.42,12.09113023]
[1735729445710,5.0,190.43,190.42,1.80888839]
[1735729446219,10.98468069,190.43,190.42,1.80888839]
[1735729447608,12.48538069,190.43,190.42,1.80888839]
[1735729448096,5.0,190.39,190.36,10.28224184]
[1735729448422,5.0,190.38,190.35,10.28224184]
[1735729448711,5.0,190.38,190.37,1.80888839]
[1735729449207,0.98498869,190.38,190.37,1.80888839]
[1735729449382,5.98496921,190.39,190.37,1.80888839]
[1735729450228,10.98496921,190.39,190.38,1.80888839]
[1735729451029,10.98496921,190.39,190.36,1.80888839]
[1735729451524,5.0,190.37,190.36,1.80888839]
[1735729451692,5.0,190.37,190.35,10.28224184]
[1735729452405,5.0,190.39,190.35,10.28224184]
[1735729452596,5.0,190.37,190.35,10.28224184]
[1735729453495,5.0,190.36,190.34,10.28224184]
[1735729453830,5.0,190.36,190.35,1.80320872]
[1735729455216,5.0,190.36,190.35,12.08545056]
[1735729455395,5.0,190.39,190.35,12.08545056]
[1735729455597,5.98493437,190.39,190.35,12.08545056]
[1735729455795,5.98493437,190.39,190.36,10.28224184]
[1735729456003,5.0,190.39,190.36,10.28224184]
[1735729456493,5.0,190.39,190.37,10.28224184]
[1735729456694,10.98491629,190.41,190.37,10.28224184]
[1735729456914,5.98491629,190.41,190.37,10.28224184]
[1735729458017,5.0,190.39,190.36,32.08545056]
[1735729458201,5.98496782,190.39,190.36,32.08545056]
[1735729458714,5.98496782,190.39,190.36,30.28224184]
[1735729458914,5.0,190.38,190.36,30.28224184]
[1735729460499,5.98496782,190.39,190.36,30.28224184]
[1735729460799,5.0,190.38,190.36,30.28224184]
[1735729461304,10.0,190.35,190.3,6.2485]
[1735729461513,10.0,190.35,190.31,10.28224184]
[1735729461917,0.98515637,190.34,190.3,6.2485]
[1735729462105,0.98515637,190.34,190.31,10.28224184]
[1735729462304,0.98515637,190.34,190.31,12.08459529]
[1735729462614,5.0,190.34,190.31,12.08459529]
[1735729462804,10.0,190.38,190.33,10.28224184]
[1735729463007,10.0,190.38,190.35,10.28224184]
[1735729463610,5.0,190.38,190.35,10.28224184]
[1735729463907,5.0,190.39,190.37,10.28224184]
[1735729464107,5.0,190.41,190.38,10.28224184]
[1735729464410,10.9848188,190.41,190.38,10.28224184]
[1735729464628,5.0,190.41,190.38,10.28224184]
[1735729465595,0.9848241,190.43,190.4,10.28224184]
[1735729465905,0.9848241,190.43,190.35,14.93555345]
[1735729465906,5.0,190.45,190.42,10.28224184]
[1735729466111,5.0,190.45,190.44,10.28224184]
[1735729466794,5.0,190.49,190.44,10.28224184]
[1735729466998,5.0,190.5,190.47,10.28224184]
[1735729467615,5.98456074,190.51,190.47,10.28224184]
[1735729467908,5.98456074,190.51,190.49,10.28224184]
[1735729468127,10.0,190.5,190.49,10.28224184]
[1735729468302,10.0,190.5,190.48,10.27579253]
[1735729468637,5.0,190.53,190.49,10.27579253]
[1735729468939,5.0,190.53,190.5,10.27579253]
[1735729469300,5.0,190.52,190.5,16.05203511]
[1735729472625,10.0,190.52,190.5,16.05203511]
[1735729473728,10.0,190.52,190.49,16.05203511]
[1735729475428,5.0,190.52,190.49,16.05203511]
[1735729478827,5.0,190.52,190.48,36.05203511]
[1735729479026,10.0,190.5,190.46,39.82891911]
[1735729479228,10.0,190.48,190.45,16.05203511]
[1735729479605,5.0,190.48,190.46,16.05203511]
[1735729480842,5.0,190.5,190.47,16.05203511]
[1735729481134,5.0,190.5,190.48,16.05203511]
[1735729482409,5.0,190.51,190.49,16.05203511]
[1735729482611,5.0,190.52,190.49,16.05203511]
[1735729482807,5.0,190.52,190.5,16.05203511]
[1735729483010,5.0,190.51,190.48,23.776884]
[1735729483226,5.0,190.52,190.49,16.05203511]
[1735729484136,5.98424489,190.52,190.49,16.05203511]
[1735729484329,10.98424489,190.52,190.49,16.05203511]
[1735729485238,10.0,190.52,190.49,16.05203511]
[1735729486222,5.0,190.5,190.49,16.05203511]
[1735729486520,5.0,190.5,190.47,16.05203511]
[1735729486839,5.0,190.48,190.46,16.05203511]
[1735729487040,5.0,190.47,190.45,16.05203511]
[1735729488320,5.0,190.47,190.45,16.06113977]
[1735729489041,5.0,190.47,190.45,10.27902489]
[1735729491021,10.0,190.47,190.45,10.27902489]
[1735729491232,10.0,190.45,190.44,12.07811587]
[1735729491438,10.0,190.45,190.44,1.79909098]
[1735729491625,10.0,190.45,190.44,21.79909098]
[1735729491838,5.0,190.45,190.42,10.27902489]
[1735729492034,10.98463405,190.45,190.42,10.27902489]
[1735729492547,10.98463405,190.45,190.44,20.0]
[1735729492923,10.0,190.45,190.44,20.0]
[1735729493426,5.0,190.43,190.42,10.27902489]
[1735729493640,5.9846752,190.43,190.42,10.27902489]
[1735729493839,10.9846752,190.43,190.41,10.27902489]
[1735729494347,10.0,190.43,190.41,10.27902489]
[1735729494552,5.0,190.43,190.42,30.27902489]
[1735729496448,5.0,190.44,190.42,30.27902489]
[1735729496652,5.0,190.44,190.43,10.27902489]
[1735729497461,5.0,190.43,190.42,30.27902489]
[1735729497654,10.0,190.43,190.42,30.27902489]
[1735729498157,10.0,190.43,190.42,20.0]
[1735729498450,5.0,190.44,190.42,30.27902489]
[1735729498633,5.0,190.43,190.42,20.0]
[1735729498832,5.0,190.43,190.42,30.27902489]
[1735729500560,5.0,190.43,190.42,10.27902489]
[1735729501455,5.0,190.43,190.42,30.27902489]
[1735729501961,5.0,190.47,190.42,30.27902489]
[1735729502163,5.0,190.48,190.46,10.27902489]
[1735729502367,5.0,190.48,190.47,10.27902489]
[1735729502546,5.0,190.49,190.47,10.27902489]
[1735729502734,5.0,190.48,190.47,10.27902489]
[1735729504364,5.0,190.49,190.47,10.27902489]
[1735729504556,5.0,190.49,190.48,10.27902489]
[1735729504862,5.0,190.49,190.47,10.27902489]
[1735729505357,5.0,190.5,190.47,10.27902489]
[1735729505561,5.0,190.49,190.47,10.27902489]
[1735729506840,5.0,190.48,190.47,10.27902489]
[1735729507473,10.0,190.48,190.47,10.27902489]
[1735729507675,5.98435771,190.5,190.47,10.27902489]
[1735729507967,5.0,190.48,190.47,10.27902489]
[1735729508460,10.0,190.48,190.47,10.27902489]
[1735729508669,10.0,190.48,190.46,30.27902489]
[1735729509068,5.0,190.46,190.4,13.1302]
[1735729509371,5.0,190.46,190.42,10.27902489]
[1735729509372,5.0,190.45,190.42,10.27902489]
[1735729509744,5.0,190.44,190.42,10.27902489]
[1735729509945,5.0,190.44,190.43,1.80773777]
[1735729510359,10.0,190.44,190.43,1.80773777]
[1735729510553,5.0,190.44,190.43,1.80773777]
[1735729510740,10.0,190.44,190.43,1.80773777]
[1735729511240,5.0,190.44,190.43,1.80773777]
[1735729511661,10.0,190.44,190.43,1.80773777]
[1735729512052,5.0,190.44,190.43,1.80773777]
[1735729512766,5.0,190.44,190.43,12.08676266]
[1735729512954,5.0,190.48,190.43,12.08676266]
[1735729513158,10.0,190.49,190.46,10.27902489]
[1735729513359,5.0,190.47,190.46,10.27902489]
[1735729513743,5.0,190.49,190.46,10.27902489]
[1735729513949,5.0,190.51,190.48,10.27902489]
[1735729514166,5.0,190.51,190.49,10.27902489]
[1735729515353,5.0,190.51,190.46,13.1259]
[1735729515354,5.0,190.51,190.5,10.27902489]
[1735729515555,10.0,190.54,190.5,12.08583454]
[1735729515762,5.0,190.53,190.52,10.27902489]
[1735729515958,5.0,190.54,190.52,10.27902489]
[1735729516269,10.0,190.57,190.53,10.27902489]
[1735729516471,10.0,190.57,190.55,10.27902489]
[1735729516867,10.0,190.56,190.54,10.27902489]
[1735729517063,5.0,190.55,190.54,10.27902489]
[1735729517267,10.0,190.56,190.54,10.27902489]
[1735729517568,10.0,190.56,190.54,12.0841377]
[1735729518073,10.0,190.56,190.55,1.80511281]
[1735729518680,10.0,190.56,190.54,10.27902489]
[1735729518975,5.0,190.52,190.5,13.1231]
[1735729519278,5.0,190.52,190.5,23.40212489]
[1735729519987,5.0,190.52,190.51,1.80474731]
[1735729520366,5.0,190.52,190.51,12.0837722]
[1735729520563,10.0,190.54,190.51,12.0837722]
[1735729521075,5.0,190.52,190.51,12.0837722]
[1735729521271,5.0,190.52,190.51,1.80474731]
[1735729521272,10.0,190.52,190.51,1.80474731]
[1735729524155,5.0,190.52,190.51,1.80474731]
[1735729524875,10.0,190.54,190.51,12.0837722]
[1735729525082,10.0,190.54,190.52,10.27902489]
[1735729525375,5.0,190.54,190.53,10.27902489]
[1735729526988,10.0,190.54,190.52,10.27902489]
[1735729527789,10.0,190.54,190.51,10.27902489]
[1735729527959,5.0,190.51,190.49,10.27902489]
[1735729528275,5.0,190.5,190.48,10.27902489]
[1735729528469,5.0,190.49,190.48,10.27902489]
[1735729528666,10.0,190.49,190.47,10.27902489]
[1735729528872,5.0,190.48,190.46,10.27902489]
[1735729529484,5.0,190.48,190.47,10.27902489]
[1735729529668,5.0,190.48,190.47,12.08173096]
[1735729530359,5.0,190.48,190.47,12.08001166]
[1735729530569,5.0,190.48,190.47,17.86097061]
[1735729530768,10.0,190.48,190.47,17.86097061]
[1735729530978,10.0,190.48,190.47,1.80270607]
[1735729532685,10.0,190.49,190.47,17.86097061]
[1735729532868,10.0,190.51,190.48,16.05826454]
[1735729533073,5.0,190.5,190.48,16.05826454]
[1735729533258,5.0,190.5,190.49,17.86097061]
[1735729533464,5.0,190.51,190.49,17.86097061]
[1735729533973,5.0,190.52,190.49,17.86097061]
[1735729534185,5.0,190.53,190.51,16.05826454]
[1735729535089,5.0,190.53,190.52,1.80270607]
[1735729535260,10.0,190.54,190.52,1.80270607]
[1735729535465,5.0,190.54,190.52,17.86097061]
[1735729535663,5.0,190.54,190.52,16.05826454]
[1735729535860,10.0,190.54,190.52,16.05826454]
[1735729538274,10.0,190.52,190.51,1.80270607]
[1735729538472,5.0,190.52,190.51,1.80270607]
[1735729538669,10.0,190.52,190.51,1.80270607]
[1735729540491,10.0,190.52,190.46,1.80270607]
[1735729540788,0.9844027,190.51,190.46,1.80270607]
[1735729540985,5.0,190.49,190.46,1.80270607]
[1735729541191,5.0,190.47,190.46,1.80270607]
[1735729541371,5.0,190.47,190.45,16.05826454]
[1735729541888,5.0,190.47,190.46,1.80301076]
[1735729543393,10.0,190.48,190.47,20.0]
[1735729544705,10.0,190.48,190.42,13.1288]
[1735729544706,5.0,190.46,190.44,16.05826454]
[1735729544907,5.0,190.45,190.44,16.05826454]
[1735729545096,5.0,190.45,190.44,37.86317588]
[1735729545709,5.0,190.45,190.44,17.86317588]
[1735729546596,5.0,190.45,190.44,21.80491134]
[1735729546803,10.98452856,190.45,190.44,21.80491134]
[1735729547292,10.98452856,190.45,190.44,1.80491134]
[1735729547500,5.0,190.4,190.38,16.05826454]
[1735729547878,5.0,190.4,190.39,1.80604584]
[1735729548291,10.98480765,190.4,190.39,1.80604584]
[1735729549191,10.98480765,190.4,190.37,20.0]
[1735729549505,5.0,190.36,190.35,1.80604584]
[1735729549687,10.0,190.37,190.34,16.05826454]
[1735729549896,10.0,190.37,190.36,20.0]
[1735729550509,10.0,190.37,190.36,21.80494898]
[1735729551001,10.0,190.37,190.36,1.80494898]
[1735729551204,5.0,190.36,190.34,16.05826454]
[1735729551381,10.0,190.35,190.34,20.0]
[1735729552217,5.0,190.31,190.29,13.1377]
[1735729552385,5.0,190.31,190.3,16.05826454]
[1735729554442,10.0,190.31,190.29,16.05826454]
[1735729555426,5.0,190.29,190.28,16.05826454]
[1735729555728,10.0,190.29,190.28,16.05826454]
[1735729556523,5.0,190.29,190.28,16.05826454]
[1735729557032,5.0,190.31,190.3,20.0]
[1735729557185,5.0,190.31,190.3,36.05826454]
[1735729559505,10.0,190.33,190.3,36.05826454]
[1735729559706,10.0,190.33,190.32,16.05826454]
[1735729560035,10.0,190.33,190.31,16.05826454]
[1735729560419,5.0,190.32,190.31,16.05826454]
[1735729561424,10.0,190.32,190.31,16.05826454]
[1735729561626,5.0,190.32,190.31,16.05826454]
[1735729561824,10.0,190.33,190.31,16.05826454]
[1735729562001,10.0,190.33,190.32,16.05826454]
[1735729563308,5.0,190.32,190.31,16.05826454]
[1735729563628,5.0,190.32,190.3,16.05826454]
[1735729563930,10.0,190.31,190.3,16.05826454]
[1735729564303,10.0,190.31,190.3,36.08684974]
[1735729564825,10.0,190.31,190.3,30.29558286]
[1735729566231,10.0,190.3,190.28,10.29558286]
[1735729566440,5.0,190.29,190.28,10.29558286]
[1735729568250,5.0,190.3,190.28,34.07246686]
[1735729568536,5.0,190.32,190.31,20.0]
[1735729569434,5.0,190.32,190.31,30.29558286]
[1735729570032,5.0,190.36,190.31,30.29558286]
[1735729570239,10.0,190.35,190.34,10.29558286]
[1735729570412,5.0,190.34,190.33,10.29558286]
[1735729570614,5.0,190.34,190.26,0.39606781]
[1735729570615,5.0,190.33,190.32,10.29558286]
[1735729571011,5.0,190.32,190.31,10.29558286]
[1735729571228,10.0,190.32,190.31,10.29558286]
[1735729572045,5.0,190.31,190.3,30.29558286]
[1735729572354,5.0,190.3,190.29,10.29558286]
[1735729574320,10.0,190.3,190.29,10.29558286]
[1735729574521,10.0,190.3,190.29,20.0]
[1735729575148,5.0,190.29,190.28,10.29558286]
[1735729576922,10.0,190.31,190.3,20.0]
[1735729577625,5.0,190.3,190.29,10.29558286]
[1735729577831,10.0,190.3,190.29,10.29558286]
[1735729580661,10.0,190.3,190.28,20.0]
[1735729580953,10.0,190.3,190.29,10.29558286]
[1735729581754,5.0,190.29,190.28,30.29558286]
[1735729582348,5.0,190.31,190.28,30.29558286]
[1735729582652,5.0,190.31,190.3,10.29558286]
[1735729583840,5.0,190.31,190.3,12.09303429]
[1735729584159,5.0,190.33,190.3,35.86991829]
[1735729584331,5.0,190.33,190.32,10.29558286]
[1735729585358,10.0,190.33,190.32,10.29558286]
[1735729585662,10.0,190.33,190.31,10.29558286]
[1735729585962,5.0,190.33,190.32,10.29558286]
[1735729586745,5.0,190.33,190.32,12.09709355]
[1735729587246,5.0,190.34,190.32,12.09709355]
[1735729587455,5.0,190.36,190.33,10.29558286]
[1735729587637,5.0,190.38,190.35,10.29558286]
[1735729587839,5.0,190.37,190.36,10.29558286]
[1735729588234,5.0,190.39,190.36,10.29558286]
[1735729588235,5.0,190.38,190.36,10.29558286]
[1735729588439,5.0,190.38,190.37,10.29558286]
[1735729588639,5.0,190.39,190.37,10.29558286]
[1735729588861,5.0,190.39,190.38,10.29558286]
[1735729589642,5.0,190.39,190.38,12.09709355]
[1735729589950,10.0,190.43,190.38,12.09709355]
[1735729590135,10.0,190.43,190.38,1.80151069]
[1735729590338,5.0,190.39,190.38,21.80151069]
[1735729590565,5.0,190.41,190.38,32.09709355]
[1735729591066,5.0,190.41,190.4,10.29558286]
[1735729591246,5.0,190.43,190.4,10.29558286]
[1735729591449,10.0,190.44,190.42,10.29558286]
[1735729591647,5.0,190.44,190.43,10.29558286]
[1735729592031,5.0,190.44,190.42,10.29558286]
[1735729592432,5.0,190.43,190.42,10.29558286]
[1735729592673,10.0,190.42,190.41,12.09709355]
[1735729592974,5.0,190.41,190.4,10.29558286]
[1735729593665,10.0,190.41,190.4,14.70713572]
[1735729593957,5.0,190.41,190.4,14.70713572]
[1735729594344,5.0,190.41,190.4,12.10567851]
[1735729595368,10.0,190.41,190.4,1.81009565]
[1735729596335,5.0,190.41,190.4,1.81009565]
[1735729596667,10.0,190.41,190.4,1.81009565]
[1735729598044,5.0,190.41,190.4,1.81009565]
[1735729598246,10.0,190.41,190.4,1.81009565]
[1735729600047,10.0,190.41,190.39,10.29558286]
[1735729600664,5.0,190.4,190.39,30.29558286]
[1735729601436,5.0,190.4,190.39,32.10264353]
[1735729601655,10.0,190.4,190.39,1.80706067]
[1735729602062,10.0,190.4,190.35,10.29558286]
[1735729602366,5.0,190.36,190.34,14.69959755]
[1735729602879,5.0,190.37,190.36,20.0]
[1735729603178,5.0,190.37,190.36,30.29558286]
[1735729603353,5.0,190.37,190.36,32.10264353]
[1735729604069,5.0,190.37,190.36,1.80706067]
[1735729605455,10.0,190.37,190.36,1.80706067]
[1735729605767,5.0,190.37,190.36,12.10264353]
[1735729606756,5.0,190.37,190.36,14.69969613]
[1735729607681,5.0,190.38,190.36,14.69969613]
[1735729607886,10.0,190.39,190.37,10.29558286]
[1735729608185,10.0,190.39,190.38,10.29558286]
[1735729608398,10.0,190.39,190.38,12.10264353]
[1735729609986,5.0,190.45,190.39,23.776884]
[1735729610154,5.0,190.45,190.44,10.29558286]
[1735729612464,10.0,190.45,190.44,10.29558286]
[1735729615793,10.0,190.45,190.43,10.29558286]
[1735729617492,5.0,190.44,190.43,10.29558286]
[1735729619889,10.0,190.45,190.43,10.29558286]
[1735729620116,10.0,190.45,190.41,1.8047966]
[1735729620117,10.0,190.45,190.44,10.29558286]
[1735729620600,10.0,190.43,190.42,1.8047966]
[1735729620777,5.0,190.43,190.42,12.10037946]
[1735729621102,10.0,190.43,190.42,10.29558286]
[1735729621496,5.0,190.43,190.42,10.29558286]
[1735729621826,5.0,190.44,190.42,12.10037946]
[1735729622186,5.0,190.44,190.43,10.29558286]
[1735729623827,10.0,190.46,190.43,10.29558286]
[1735729624000,5.0,190.46,190.44,10.29558286]
[1735729624329,5.0,190.45,190.44,10.29558286]
[1735729625184,10.0,190.47,190.44,10.29558286]
[1735729625389,5.0,190.47,190.46,10.29558286]
[1735729625620,10.0,190.47,190.46,10.29558286]
[1735729625818,10.0,190.48,190.46,10.29558286]
[1735729627217,5.0,190.46,190.45,10.29558286]
[1735729627903,5.0,190.46,190.45,12.10233449]
[1735729628107,10.0,190.48,190.45,12.10233449]
[1735729628310,10.0,190.48,190.46,10.29558286]
[1735729628817,10.0,190.48,190.46,12.10233449]
[1735729629291,10.0,190.48,190.46,10.29558286]
[1735729629799,5.0,190.51,190.47,10.29558286]
[1735729630005,10.0,190.54,190.5,10.29558286]
[1735729630199,5.0,190.52,190.51,10.29558286]
[1735729630523,10.98408451,190.52,190.51,1.805429]
[1735729630731,10.0,190.52,190.51,1.805429]
[1735729630896,5.0,190.5,190.48,10.29558286]
[1735729631097,10.0,190.5,190.48,10.29558286]
[1735729631296,5.0,190.49,190.48,10.29558286]
[1735729632216,10.0,190.49,190.48,1.80652322]
[1735729635422,5.0,190.49,190.48,1.80652322]
[1735729635592,5.0,190.49,190.48,12.10210608]
[1735729636109,10.0,190.49,190.48,12.10210608]
[1735729636430,5.0,190.49,190.48,12.10210608]
[1735729636930,10.0,190.49,190.48,12.10210608]
[1735729637321,10.0,190.49,190.48,1.80652322]
[1735729644630,5.0,190.5,190.48,12.10210608]
[1735729644833,5.0,190.5,190.49,10.29558286]
[1735729646550,5.0,190.53,190.5,23.776884]
[1735729646840,10.0,190.58,190.53,23.776884]
[1735729647009,10.0,190.58,190.56,10.29558286]
[1735729647211,5.0,190.58,190.56,10.29558286]
[1735729647426,10.0,190.58,190.56,10.29558286]
[1735729648027,5.0,190.58,190.56,10.29558286]
[1735729648224,10.0,190.6,190.57,10.29558286]
[1735729648401,10.0,190.58,190.56,20.0]
[1735729648600,10.0,190.58,190.57,10.29558286]
[1735729649102,0.98382862,190.62,190.52,20.0]
[1735729649103,10.0,190.57,190.52,20.0]
[1735729649331,5.0,190.55,190.54,10.29558286]
[1735729649634,5.0,190.56,190.54,10.29558286]
[1735729649830,10.0,190.58,190.55,10.29558286]
[1735729650046,10.0,190.58,190.56,10.29558286]
[1735729651309,5.0,190.58,190.56,10.29558286]
[1735729651511,5.0,190.58,190.57,10.29558286]
[1735729652215,10.0,190.58,190.57,10.29558286]
[1735729652624,5.0,190.58,190.57,10.29558286]
[1735729653949,0.98382233,190.62,190.57,10.29558286]
[1735729653950,5.0,190.61,190.57,10.29558286]
[1735729654113,5.0,190.6,190.56,23.776884]
[1735729654314,5.0,190.62,190.59,10.29558286]
[1735729654526,5.0,190.62,190.6,10.29558286]
[1735729654722,0.98363678,190.67,190.55,13.51322421]
[1735729654723,10.0,190.64,190.61,10.29558286]
[1735729654929,10.0,190.64,190.62,10.29558286]
[1735729654930,5.0,190.64,190.62,10.29558286]
[1735729655131,5.0,190.63,190.62,10.29558286]
[1735729655412,10.0,190.64,190.62,10.29558286]
[1735729655644,5.0,190.64,190.62,10.29558286]
[1735729655819,5.0,190.64,190.63,10.29558286]
[1735729656540,5.0,190.65,190.63,10.29558286]
[1735729656741,10.0,190.66,190.63,10.29558286]
[1735729657445,5.0,190.66,190.64,10.29558286]
[1735729657622,5.0,190.66,190.65,10.29558286]
[1735729658527,5.0,190.67,190.65,10.29558286]
[1735729658729,5.0,190.67,190.66,10.29558286]
[1735729658929,5.0,190.68,190.66,10.29558286]
[1735729659130,5.0,190.68,190.67,10.29558286]
[1735729660054,5.0,190.69,190.67,10.29558286]
[1735729660250,5.0,190.69,190.68,10.29558286]
[1735729660856,5.0,190.71,190.68,10.29558286]
[1735729661031,5.0,190.71,190.69,10.29558286]
[1735729661243,5.0,190.7,190.69,10.29558286]
[1735729661626,5.0,190.72,190.69,10.29558286]
[1735729661832,5.0,190.72,190.7,10.29558286]
[1735729662046,5.0,190.73,190.7,34.07246686]
[1735729662047,5.0,190.71,190.7,34.07246686]
[1735729662665,5.0,190.72,190.7,34.07246686]
[1735729662833,5.0,190.72,190.71,10.29558286]
[1735729663955,5.0,190.72,190.71,34.07246686]
[1735729664436,5.0,190.74,190.72,23.776884]
[1735729664644,5.0,190.75,190.73,10.29558286]
[1735729665169,5.0,190.75,190.72,23.776884]
[1735729665351,5.0,190.76,190.74,10.29558286]
[1735729665563,5.0,190.78,190.75,10.29558286]
[1735729665735,5.0,190.78,190.76,10.29558286]
[1735729666252,5.0,190.77,190.76,10.29558286]
[1735729667663,10.0,190.77,190.76,10.29558286]
[1735729667867,5.0,190.76,190.75,10.29558286]
[1735729668346,5.0,190.77,190.75,10.29558286]
[1735729668542,5.0,190.77,190.76,10.29558286]
[1735729668943,5.0,190.75,190.74,30.29558286]
[1735729669242,10.0,190.75,190.74,20.0]
[1735729669448,5.0,190.74,190.72,10.29558286]
[1735729669660,5.0,190.74,190.73,10.29558286]
[1735729669966,5.0,190.76,190.75,20.0]
[1735729670133,5.0,190.77,190.75,30.29558286]
[1735729670757,5.0,190.73,190.69,1.5962]
[1735729670965,5.0,190.73,190.72,10.29558286]
[1735729671258,5.0,190.77,190.75,20.0]
[1735729671437,5.0,190.77,190.75,30.29558286]
[1735729671954,5.0,190.77,190.76,10.29558286]
[1735729672146,5.0,190.77,190.76,34.07246686]
[1735729672459,5.0,190.78,190.76,34.07246686]
[1735729672635,5.0,190.78,190.77,23.776884]
[1735729672951,5.0,190.79,190.77,34.07246686]
[1735729673159,5.0,190.79,190.78,10.29558286]
[1735729674060,5.0,190.8,190.78,10.29558286]
[1735729674264,5.0,190.8,190.79,10.29558286]
[1735729675159,5.0,190.78,190.77,20.0]
[1735729675338,5.0,190.78,190.76,10.29558286]